[Event "Titled Tuesday Blitz August 17 2021"]
[White "Shkapenko, Pavel"]
[Black "Krasilnikov, Evgeni"]
[WhiteFideId "4151933"]
[BlackFideId "4139739"]
[WhiteElo "2386"]
[BlackElo "2295"]
[Result "1/2-1/2"]
[Round "08"]
[TimeControl "180+1"]
[Date "2021.08.17"]
[WhiteClock "0:00:20"]
[BlackClock "0:00:22"]

1. e4 {[%clk 0:03:00]}  c6 {[%clk 0:02:58]} 2. d4 {[%clk 0:02:56]}  d5 {[%clk 0:02:59]} 3. e5 {[%clk 0:02:55]}  Bf5 {[%clk 0:02:58]} 4. h4 {[%clk 0:02:56]}  h6 {[%clk 0:02:56]} 5. g4 {[%clk 0:02:55]}  Bd7 {[%clk 0:02:56]} 6. h5 {[%clk 0:02:54]}  e6 {[%clk 0:02:53]} 7. c3 {[%clk 0:02:53]}  c5 {[%clk 0:02:52]} 8. Na3 {[%clk 0:02:53]}  Nc6 {[%clk 0:02:52]} 9. Nc2 {[%clk 0:02:52]}  Qb6 {[%clk 0:02:51]} 10. Nf3 {[%clk 0:02:51]}  cxd4 {[%clk 0:02:46]} 11. Ncxd4 {[%clk 0:02:47]}  Nxd4 {[%clk 0:02:40]} 12. cxd4 {[%clk 0:02:38]}  Bb4+ {[%clk 0:02:37]} 13. Bd2 {[%clk 0:02:38]}  Bxd2+ {[%clk 0:02:37]} 14. Qxd2 {[%clk 0:02:38]}  Ne7 {[%clk 0:02:37]} 15. O-O-O {[%clk 0:02:18]}  O-O-O {[%clk 0:02:24]} 16. Kb1 {[%clk 0:02:18]}  Kb8 {[%clk 0:02:23]} 17. Be2 {[%clk 0:02:14]}  Bb5 {[%clk 0:02:13]} 18. Bxb5 {[%clk 0:02:09]}  Qxb5 {[%clk 0:02:14]} 19. Qf4 {[%clk 0:02:09]}  Rhf8 {[%clk 0:02:07]} 20. Rc1 {[%clk 0:02:06]}  Qd3+ {[%clk 0:01:56]} 21. Ka1 {[%clk 0:02:05]}  Qe4 {[%clk 0:01:47]} 22. Qg3 {[%clk 0:01:40]}  Nc6 {[%clk 0:01:42]} 23. Rhe1 {[%clk 0:01:40]}  Qd3 {[%clk 0:01:41]} 24. Re3 {[%clk 0:01:38]}  Qb5 {[%clk 0:01:37]} 25. Rb3 {[%clk 0:01:37]}  Qa6 {[%clk 0:01:33]} 26. Qf4 {[%clk 0:01:37]}  Rc8 {[%clk 0:01:23]} 27. Qd2 {[%clk 0:01:28]}  Na5 {[%clk 0:01:09]} 28. Rbc3 {[%clk 0:01:21]}  Rxc3 {[%clk 0:00:50]} 29. Qxc3 {[%clk 0:01:17]}  Qc6 {[%clk 0:00:46]} 30. b3 {[%clk 0:00:47]}  Rc8 {[%clk 0:00:39]} 31. Kb2 {[%clk 0:00:46]}  Qxc3+ {[%clk 0:00:32]} 32. Rxc3 {[%clk 0:00:45]}  Rxc3 {[%clk 0:00:33]} 33. Kxc3 {[%clk 0:00:46]}  Nc6 {[%clk 0:00:33]} 34. Nh4 {[%clk 0:00:45]}  Kc7 {[%clk 0:00:31]} 35. f4 {[%clk 0:00:45]}  b5 {[%clk 0:00:30]} 36. b4 {[%clk 0:00:44]}  a5 {[%clk 0:00:30]} 37. a3 {[%clk 0:00:45]}  axb4+ {[%clk 0:00:30]} 38. axb4 {[%clk 0:00:45]}  Nd8 {[%clk 0:00:29]} 39. g5 {[%clk 0:00:40]}  Nc6 {[%clk 0:00:28]} 40. Nf3 {[%clk 0:00:39]}  Ne7 {[%clk 0:00:26]} 41. Nh4 {[%clk 0:00:39]}  Kc8 {[%clk 0:00:24]} 42. Kd3 {[%clk 0:00:35]}  Nc6 {[%clk 0:00:23]} 43. Kc3 {[%clk 0:00:26]}  Ne7 {[%clk 0:00:23]} 44. Kb3 {[%clk 0:00:19]}  Nc6 {[%clk 0:00:22]} 45. Kc3 {[%clk 0:00:20]}  Ne7 {[%clk 0:00:22]} 1/2-1/2


[Site "https://www.chess.com"]

[Event "Titled Tuesday Blitz August 17 2021"]
[White "Solon, Nathan"]
[Black "Lashkin, Jegor"]
[WhiteFideId "2017229"]
[BlackFideId "13907808"]
[WhiteElo "2685"]
[BlackElo "2293"]
[Result "0-1"]
[Round "08"]
[TimeControl "180+1"]
[Date "2021.08.17"]
[WhiteClock "0:00:02"]
[BlackClock "0:00:03"]

1. d4 {[%clk 0:03:00]}  Nf6 {[%clk 0:02:59]} 2. c4 {[%clk 0:02:59]}  e6 {[%clk 0:02:59]} 3. g3 {[%clk 0:02:58]}  d5 {[%clk 0:02:59]} 4. Bg2 {[%clk 0:02:54]}  dxc4 {[%clk 0:02:59]} 5. Nf3 {[%clk 0:02:54]}  a6 {[%clk 0:02:59]} 6. O-O {[%clk 0:02:53]}  Nc6 {[%clk 0:03:00]} 7. Nbd2 {[%clk 0:02:52]}  b5 {[%clk 0:02:59]} 8. b3 {[%clk 0:02:52]}  c3 {[%clk 0:02:59]} 9. Nb1 {[%clk 0:02:52]}  b4 {[%clk 0:02:59]} 10. a3 {[%clk 0:02:52]}  Rb8 {[%clk 0:02:59]} 11. axb4 {[%clk 0:02:51]}  Bxb4 {[%clk 0:03:00]} 12. Qd3 {[%clk 0:02:51]}  O-O {[%clk 0:02:57]} 13. Nxc3 {[%clk 0:02:43]}  e5 {[%clk 0:02:57]} 14. Be3 {[%clk 0:01:33]}  exd4 {[%clk 0:02:28]} 15. Nxd4 {[%clk 0:01:32]}  Ne5 {[%clk 0:02:18]} 16. Qc2 {[%clk 0:01:27]}  Nfg4 {[%clk 0:02:13]} 17. Nd5 {[%clk 0:01:19]}  Nxe3 {[%clk 0:02:11]} 18. fxe3 {[%clk 0:01:18]}  Bd6 {[%clk 0:02:02]} 19. Be4 {[%clk 0:01:13]}  Kh8 {[%clk 0:01:31]} 20. Rac1 {[%clk 0:01:11]}  Bh3 {[%clk 0:01:27]} 21. Rfd1 {[%clk 0:01:09]}  Qg5 {[%clk 0:01:21]} 22. Nf3 {[%clk 0:01:01]}  Nxf3+ {[%clk 0:01:20]} 23. exf3 {[%clk 0:01:01]}  Rbe8 {[%clk 0:01:00]} 24. f4 {[%clk 0:01:00]}  Qh5 {[%clk 0:00:56]} 25. Bg2 {[%clk 0:01:01]}  Bg4 {[%clk 0:00:56]} 26. Rd4 {[%clk 0:00:57]}  Re6 {[%clk 0:00:47]} 27. e4 {[%clk 0:00:39]}  c6 {[%clk 0:00:46]} 28. Ne3 {[%clk 0:00:39]}  Bb8 {[%clk 0:00:40]} 29. Kh1 {[%clk 0:00:17]}  Ba7 {[%clk 0:00:36]} 30. Rd3 {[%clk 0:00:18]}  Be2 {[%clk 0:00:36]} 31. Rc3 {[%clk 0:00:18]}  Bd4 {[%clk 0:00:35]} 32. Nf5 {[%clk 0:00:11]}  Bxc3 {[%clk 0:00:33]} 33. Qxc3 {[%clk 0:00:12]}  Qg6 {[%clk 0:00:26]} 34. Qd4 {[%clk 0:00:10]}  Qf6 {[%clk 0:00:16]} 35. Qf2 {[%clk 0:00:08]}  Bb5 {[%clk 0:00:15]} 36. h4 {[%clk 0:00:07]}  g6 {[%clk 0:00:14]} 37. Nd4 {[%clk 0:00:06]}  Ree8 {[%clk 0:00:14]} 38. e5 {[%clk 0:00:07]}  Qe7 {[%clk 0:00:12]} 39. Bxc6 {[%clk 0:00:06]}  Rc8 {[%clk 0:00:11]} 40. Qe3 {[%clk 0:00:04]}  f6 {[%clk 0:00:11]} 41. e6 {[%clk 0:00:03]}  Rfd8 {[%clk 0:00:10]} 42. Bxb5 {[%clk 0:00:03]}  Rxc1+ {[%clk 0:00:10]} 43. Qxc1 {[%clk 0:00:04]}  axb5 {[%clk 0:00:09]} 44. Nc6 {[%clk 0:00:01]}  Qb7 {[%clk 0:00:06]} 45. Kh2 {[%clk 0:00:01]}  Re8 {[%clk 0:00:05]} 46. e7 {[%clk 0:00:01]}  Kg7 {[%clk 0:00:05]} 47. Qc5 {[%clk 0:00:01]}  h5 {[%clk 0:00:03]} 48. Qd6 {[%clk 0:00:01]}  Qc8 {[%clk 0:00:03]} 49. Nd4 {[%clk 0:00:01]}  Qb7 {[%clk 0:00:02]} 50. f5 {[%clk 0:00:01]}  Qxe7 {[%clk 0:00:02]} 51. Qc5 {[%clk 0:00:01]}  Qxc5 {[%clk 0:00:02]} 52. Ne6+ {[%clk 0:00:01]}  Rxe6 {[%clk 0:00:02]} 53. fxe6 {[%clk 0:00:02]}  Qe7 {[%clk 0:00:03]} 0-1


[Site "https://www.chess.com"]

[Event "Titled Tuesday Blitz August 17 2021"]
[White "Svane, Rasmus"]
[Black "Drygalov, Sergey"]
[WhiteFideId "4657101"]
[BlackFideId "24171743"]
[WhiteElo "2669"]
[BlackElo "2514"]
[Result "1-0"]
[Round "08"]
[TimeControl "180+1"]
[Date "2021.08.17"]
[WhiteClock "0:00:11"]
[BlackClock "0:00:04"]

1. Nf3 {[%clk 0:03:00]}  Nf6 {[%clk 0:02:59]} 2. g3 {[%clk 0:03:01]}  g6 {[%clk 0:03:00]} 3. Bg2 {[%clk 0:03:01]}  Bg7 {[%clk 0:03:00]} 4. O-O {[%clk 0:03:02]}  O-O {[%clk 0:03:01]} 5. d4 {[%clk 0:03:02]}  d5 {[%clk 0:03:01]} 6. c3 {[%clk 0:03:02]}  c6 {[%clk 0:03:00]} 7. Re1 {[%clk 0:03:01]}  a5 {[%clk 0:02:58]} 8. a4 {[%clk 0:03:01]}  Bf5 {[%clk 0:02:57]} 9. Nbd2 {[%clk 0:03:00]}  Ne4 {[%clk 0:02:28]} 10. Nh4 {[%clk 0:03:00]}  Nxd2 {[%clk 0:02:28]} 11. Bxd2 {[%clk 0:03:01]}  Be6 {[%clk 0:02:28]} 12. e4 {[%clk 0:03:01]}  dxe4 {[%clk 0:02:29]} 13. Bxe4 {[%clk 0:03:02]}  Nd7 {[%clk 0:02:29]} 14. Bg2 {[%clk 0:03:00]}  Qb6 {[%clk 0:02:27]} 15. Qc2 {[%clk 0:02:54]}  Rad8 {[%clk 0:02:22]} 16. Be3 {[%clk 0:02:47]}  Bd5 {[%clk 0:01:45]} 17. Bxd5 {[%clk 0:02:45]}  cxd5 {[%clk 0:01:46]} 18. Nf3 {[%clk 0:02:42]}  Rc8 {[%clk 0:01:42]} 19. Kg2 {[%clk 0:02:39]}  e6 {[%clk 0:01:42]} 20. Bf4 {[%clk 0:02:33]}  Bxd4 {[%clk 0:01:34]} 21. Nxd4 {[%clk 0:02:31]}  Qxd4 {[%clk 0:01:34]} 22. Qe2 {[%clk 0:02:17]}  Qf6 {[%clk 0:01:27]} 23. h4 {[%clk 0:02:16]}  Rfe8 {[%clk 0:01:25]} 24. Bg5 {[%clk 0:02:14]}  Qg7 {[%clk 0:01:21]} 25. Rad1 {[%clk 0:02:13]}  Nc5 {[%clk 0:01:21]} 26. Qb5 {[%clk 0:02:12]}  b6 {[%clk 0:01:13]} 27. Qxb6 {[%clk 0:01:57]}  Nxa4 {[%clk 0:01:12]} 28. Qb5 {[%clk 0:01:57]}  Nc5 {[%clk 0:01:02]} 29. Qxa5 {[%clk 0:01:50]}  Ne4 {[%clk 0:01:03]} 30. Be3 {[%clk 0:01:48]}  Rb8 {[%clk 0:01:02]} 31. Rb1 {[%clk 0:01:43]}  Rb7 {[%clk 0:01:01]} 32. Bd4 {[%clk 0:01:38]}  Qf8 {[%clk 0:00:58]} 33. Qa6 {[%clk 0:01:29]}  Reb8 {[%clk 0:00:53]} 34. b4 {[%clk 0:01:29]}  Qc8 {[%clk 0:00:49]} 35. Qd3 {[%clk 0:01:25]}  Ra8 {[%clk 0:00:46]} 36. h5 {[%clk 0:01:18]}  Ra2 {[%clk 0:00:43]} 37. hxg6 {[%clk 0:01:16]}  fxg6 {[%clk 0:00:43]} 38. Ra1 {[%clk 0:01:08]}  Rxa1 {[%clk 0:00:36]} 39. Rxa1 {[%clk 0:01:09]}  Rf7 {[%clk 0:00:36]} 40. Ra2 {[%clk 0:00:38]}  h5 {[%clk 0:00:27]} 41. Re2 {[%clk 0:00:31]}  Kh7 {[%clk 0:00:25]} 42. b5 {[%clk 0:00:31]}  Ng5 {[%clk 0:00:19]} 43. Re5 {[%clk 0:00:27]}  Rf5 {[%clk 0:00:17]} 44. Rxf5 {[%clk 0:00:22]}  gxf5 {[%clk 0:00:18]} 45. Qe3 {[%clk 0:00:19]}  Kg6 {[%clk 0:00:08]} 46. Qe5 {[%clk 0:00:18]}  Qf8 {[%clk 0:00:05]} 47. b6 {[%clk 0:00:17]}  Qe7 {[%clk 0:00:02]} 48. b7 {[%clk 0:00:15]}  Qxb7 {[%clk 0:00:01]} 49. Qf6+ {[%clk 0:00:15]}  Kh7 {[%clk 0:00:02]} 50. Qxg5 {[%clk 0:00:15]}  Qf7 {[%clk 0:00:02]} 51. f4 {[%clk 0:00:14]}  h4 {[%clk 0:00:01]} 52. Qxh4+ {[%clk 0:00:13]}  Kg8 {[%clk 0:00:02]} 53. Qd8+ {[%clk 0:00:13]}  Kh7 {[%clk 0:00:03]} 54. Qg5 {[%clk 0:00:12]}  Qd7 {[%clk 0:00:02]} 55. Qh5+ {[%clk 0:00:11]}  Kg8 {[%clk 0:00:03]} 56. Qg6+ {[%clk 0:00:11]}  Kf8 {[%clk 0:00:04]} 57. Bc5+ {[%clk 0:00:11]} 1-0


[Site "https://www.chess.com"]

[Event "Titled Tuesday Blitz August 17 2021"]
[White "Tania, Sachdev"]
[Black "Kononenko, Dmitry"]
[WhiteFideId "5007844"]
[BlackFideId "14113538"]
[WhiteElo "2280"]
[BlackElo "2276"]
[Result "0-1"]
[Round "08"]
[TimeControl "180+1"]
[Date "2021.08.17"]
[WhiteClock "0:00:26"]
[BlackClock "0:00:14"]

1. d4 {[%clk 0:03:00]}  d5 {[%clk 0:02:58]} 2. c4 {[%clk 0:03:01]}  c6 {[%clk 0:02:59]} 3. Nf3 {[%clk 0:03:01]}  Nf6 {[%clk 0:02:59]} 4. Nc3 {[%clk 0:03:01]}  e6 {[%clk 0:02:59]} 5. g3 {[%clk 0:03:01]}  Nbd7 {[%clk 0:02:55]} 6. Bg2 {[%clk 0:03:01]}  Bd6 {[%clk 0:02:54]} 7. O-O {[%clk 0:03:00]}  O-O {[%clk 0:02:55]} 8. Qd3 {[%clk 0:02:55]}  dxc4 {[%clk 0:02:51]} 9. Qxc4 {[%clk 0:02:53]}  e5 {[%clk 0:02:51]} 10. Rd1 {[%clk 0:02:39]}  Qe7 {[%clk 0:02:49]} 11. Bg5 {[%clk 0:02:17]}  h6 {[%clk 0:02:27]} 12. dxe5 {[%clk 0:01:46]}  Nxe5 {[%clk 0:02:25]} 13. Nxe5 {[%clk 0:01:45]}  Bxe5 {[%clk 0:02:22]} 14. Bxf6 {[%clk 0:01:28]}  Bxf6 {[%clk 0:02:18]} 15. Rac1 {[%clk 0:01:22]}  Be6 {[%clk 0:02:16]} 16. Qa4 {[%clk 0:01:20]}  a6 {[%clk 0:02:09]} 17. b3 {[%clk 0:01:11]}  Rad8 {[%clk 0:02:02]} 18. Ne4 {[%clk 0:01:10]}  Bb2 {[%clk 0:02:01]} 19. Rb1 {[%clk 0:01:09]}  Rxd1+ {[%clk 0:02:01]} 20. Rxd1 {[%clk 0:01:10]}  Rd8 {[%clk 0:01:54]} 21. Rb1 {[%clk 0:01:05]}  Bd4 {[%clk 0:01:39]} 22. e3 {[%clk 0:01:04]}  Bb6 {[%clk 0:01:36]} 23. Rc1 {[%clk 0:01:01]}  Bf5 {[%clk 0:01:32]} 24. Qc4 {[%clk 0:00:57]}  Bg6 {[%clk 0:01:01]} 25. h4 {[%clk 0:00:45]}  Kh7 {[%clk 0:00:42]} 26. b4 {[%clk 0:00:45]}  Bxe4 {[%clk 0:00:20]} 27. Bxe4+ {[%clk 0:00:45]}  g6 {[%clk 0:00:21]} 28. h5 {[%clk 0:00:44]}  Kg7 {[%clk 0:00:19]} 29. hxg6 {[%clk 0:00:44]}  fxg6 {[%clk 0:00:20]} 30. a4 {[%clk 0:00:41]}  Qf6 {[%clk 0:00:18]} 31. Rc2 {[%clk 0:00:38]}  Rd1+ {[%clk 0:00:17]} 32. Kg2 {[%clk 0:00:37]}  Qa1 {[%clk 0:00:15]} 33. Qe6 {[%clk 0:00:27]}  Qf6 {[%clk 0:00:15]} 34. Qd7+ {[%clk 0:00:26]}  Rxd7 {[%clk 0:00:14]} 0-1


[Site "https://www.chess.com"]

[Event "Titled Tuesday Blitz August 17 2021"]
[White "Tari, Aryan"]
[Black "Sonis, Francesco"]
[WhiteFideId "1510045"]
[BlackFideId "895733"]
[WhiteElo "2656"]
[BlackElo "2373"]
[Result "0-1"]
[Round "08"]
[TimeControl "180+1"]
[Date "2021.08.17"]
[WhiteClock "0:00:08"]
[BlackClock "0:00:37"]

1. b3 {[%clk 0:03:00]}  e5 {[%clk 0:02:57]} 2. Bb2 {[%clk 0:03:00]}  Nc6 {[%clk 0:02:57]} 3. e3 {[%clk 0:03:01]}  d5 {[%clk 0:02:57]} 4. Bb5 {[%clk 0:02:54]}  Ne7 {[%clk 0:02:56]} 5. Nf3 {[%clk 0:02:36]}  f6 {[%clk 0:02:53]} 6. d4 {[%clk 0:02:37]}  e4 {[%clk 0:02:50]} 7. Nfd2 {[%clk 0:02:37]}  a6 {[%clk 0:02:50]} 8. Be2 {[%clk 0:02:37]}  f5 {[%clk 0:02:47]} 9. c4 {[%clk 0:02:36]}  g6 {[%clk 0:02:47]} 10. h4 {[%clk 0:02:30]}  h5 {[%clk 0:02:44]} 11. g3 {[%clk 0:02:28]}  Bg7 {[%clk 0:02:44]} 12. Nc3 {[%clk 0:02:25]}  Be6 {[%clk 0:02:43]} 13. Ba3 {[%clk 0:02:23]}  Qd7 {[%clk 0:02:37]} 14. Rc1 {[%clk 0:02:16]}  Kf7 {[%clk 0:02:35]} 15. Na4 {[%clk 0:01:49]}  b6 {[%clk 0:02:32]} 16. Qc2 {[%clk 0:01:50]}  Rhc8 {[%clk 0:02:09]} 17. cxd5 {[%clk 0:01:26]}  Bxd5 {[%clk 0:02:09]} 18. Nc3 {[%clk 0:01:15]}  Nd8 {[%clk 0:01:56]} 19. Nc4 {[%clk 0:00:57]}  Be6 {[%clk 0:01:48]} 20. Bxe7 {[%clk 0:00:50]}  Qxe7 {[%clk 0:01:44]} 21. d5 {[%clk 0:00:50]}  Bd7 {[%clk 0:01:43]} 22. Rd1 {[%clk 0:00:30]}  Nb7 {[%clk 0:01:40]} 23. Kf1 {[%clk 0:00:29]}  Nd6 {[%clk 0:01:40]} 24. Kg2 {[%clk 0:00:29]}  Kg8 {[%clk 0:01:35]} 25. Nb1 {[%clk 0:00:24]}  Kh7 {[%clk 0:01:30]} 26. a4 {[%clk 0:00:24]}  Qe8 {[%clk 0:01:24]} 27. Rc1 {[%clk 0:00:23]}  b5 {[%clk 0:01:23]} 28. Na5 {[%clk 0:00:20]}  bxa4 {[%clk 0:01:22]} 29. Nc6 {[%clk 0:00:21]}  Bxc6 {[%clk 0:01:20]} 30. dxc6 {[%clk 0:00:20]}  axb3 {[%clk 0:01:21]} 31. Qxb3 {[%clk 0:00:21]}  a5 {[%clk 0:01:21]} 32. Na3 {[%clk 0:00:20]}  a4 {[%clk 0:01:21]} 33. Qa2 {[%clk 0:00:19]}  Rcb8 {[%clk 0:01:20]} 34. Rc2 {[%clk 0:00:19]}  Rb3 {[%clk 0:01:19]} 35. Nc4 {[%clk 0:00:20]}  Nxc4 {[%clk 0:01:15]} 36. Bxc4 {[%clk 0:00:21]}  Rb4 {[%clk 0:01:16]} 37. Rd1 {[%clk 0:00:19]}  Qe5 {[%clk 0:01:08]} 38. Rd5 {[%clk 0:00:17]}  Qf6 {[%clk 0:00:50]} 39. Rd7 {[%clk 0:00:12]}  a3 {[%clk 0:00:50]} 40. Rf7 {[%clk 0:00:11]}  Qe5 {[%clk 0:00:46]} 41. Rd2 {[%clk 0:00:08]}  Rb2 {[%clk 0:00:44]} 42. Qa1 {[%clk 0:00:09]}  Kh6 {[%clk 0:00:37]} 43. Rdd7 {[%clk 0:00:08]}  Rxf2+ {[%clk 0:00:37]} 0-1


[Site "https://www.chess.com"]

[Event "Titled Tuesday Blitz August 17 2021"]
[White "Thing, Bibek"]
[Black "Durarbayli, Vasif"]
[WhiteFideId "12303135"]
[BlackFideId "13402935"]
[WhiteElo "2000"]
[BlackElo "2522"]
[Result "1/2-1/2"]
[Round "08"]
[TimeControl "180+1"]
[Date "2021.08.17"]
[WhiteClock "0:00:09"]
[BlackClock "0:00:05"]

1. e4 {[%clk 0:03:00]}  e5 {[%clk 0:02:53]} 2. Nf3 {[%clk 0:03:01]}  Nc6 {[%clk 0:02:54]} 3. Bc4 {[%clk 0:02:59]}  Bc5 {[%clk 0:02:53]} 4. d3 {[%clk 0:02:53]}  Nf6 {[%clk 0:02:52]} 5. a4 {[%clk 0:02:38]}  O-O {[%clk 0:02:51]} 6. O-O {[%clk 0:02:36]}  h6 {[%clk 0:02:49]} 7. a5 {[%clk 0:02:28]}  a6 {[%clk 0:02:47]} 8. c3 {[%clk 0:02:29]}  d5 {[%clk 0:02:44]} 9. exd5 {[%clk 0:02:27]}  Nxd5 {[%clk 0:02:45]} 10. Re1 {[%clk 0:02:23]}  Bg4 {[%clk 0:02:34]} 11. h3 {[%clk 0:02:09]}  Bh5 {[%clk 0:02:34]} 12. Nbd2 {[%clk 0:02:09]}  Nf4 {[%clk 0:02:30]} 13. Ne4 {[%clk 0:02:07]}  Ba7 {[%clk 0:02:21]} 14. Bxf4 {[%clk 0:01:38]}  exf4 {[%clk 0:02:22]} 15. d4 {[%clk 0:01:38]}  Ne7 {[%clk 0:02:19]} 16. Ned2 {[%clk 0:01:06]}  c5 {[%clk 0:02:15]} 17. dxc5 {[%clk 0:00:52]}  Bxc5 {[%clk 0:01:57]} 18. Re5 {[%clk 0:00:52]}  Bxf3 {[%clk 0:01:54]} 19. Nxf3 {[%clk 0:00:53]}  Bd6 {[%clk 0:01:54]} 20. Re4 {[%clk 0:00:50]}  Nc6 {[%clk 0:01:53]} 21. Bd5 {[%clk 0:00:49]}  Qc7 {[%clk 0:01:47]} 22. Rc4 {[%clk 0:00:48]}  Rad8 {[%clk 0:01:46]} 23. Bxc6 {[%clk 0:00:45]}  bxc6 {[%clk 0:01:45]} 24. Qa4 {[%clk 0:00:46]}  Rc8 {[%clk 0:01:36]} 25. b4 {[%clk 0:00:44]}  Qb7 {[%clk 0:01:20]} 26. Rd1 {[%clk 0:00:39]}  Bb8 {[%clk 0:01:13]} 27. Qc2 {[%clk 0:00:32]}  Rfe8 {[%clk 0:01:07]} 28. Qf5 {[%clk 0:00:31]}  g6 {[%clk 0:01:03]} 29. Qf6 {[%clk 0:00:26]}  Re6 {[%clk 0:00:58]} 30. Rd8+ {[%clk 0:00:25]}  Rxd8 {[%clk 0:00:58]} 31. Qxd8+ {[%clk 0:00:26]}  Kg7 {[%clk 0:00:59]} 32. Qd4+ {[%clk 0:00:23]}  Rf6 {[%clk 0:00:55]} 33. Nd2 {[%clk 0:00:20]}  Ba7 {[%clk 0:00:54]} 34. Qe5 {[%clk 0:00:14]}  Bb8 {[%clk 0:00:54]} 35. Qd4 {[%clk 0:00:14]}  Ba7 {[%clk 0:00:52]} 36. Rc5 {[%clk 0:00:10]}  Bxc5 {[%clk 0:00:46]} 37. bxc5 {[%clk 0:00:11]}  Qe7 {[%clk 0:00:42]} 38. Ne4 {[%clk 0:00:11]}  g5 {[%clk 0:00:42]} 39. Kf1 {[%clk 0:00:11]}  Kg6 {[%clk 0:00:35]} 40. Nxf6 {[%clk 0:00:11]}  Qxf6 {[%clk 0:00:36]} 41. Qd3+ {[%clk 0:00:12]}  Qf5 {[%clk 0:00:36]} 42. Qxa6 {[%clk 0:00:12]}  Qb1+ {[%clk 0:00:32]} 43. Ke2 {[%clk 0:00:12]}  Qc2+ {[%clk 0:00:33]} 44. Ke1 {[%clk 0:00:10]}  Qxc3+ {[%clk 0:00:32]} 45. Ke2 {[%clk 0:00:10]}  Qc2+ {[%clk 0:00:32]} 46. Ke1 {[%clk 0:00:11]}  Qb1+ {[%clk 0:00:26]} 47. Ke2 {[%clk 0:00:11]}  Qe4+ {[%clk 0:00:27]} 48. Kf1 {[%clk 0:00:10]}  Qb1+ {[%clk 0:00:27]} 49. Ke2 {[%clk 0:00:10]}  Qc2+ {[%clk 0:00:27]} 50. Ke1 {[%clk 0:00:11]}  Qxc5 {[%clk 0:00:17]} 51. Qd3+ {[%clk 0:00:10]}  Kg7 {[%clk 0:00:18]} 52. a6 {[%clk 0:00:11]}  Qa5+ {[%clk 0:00:10]} 53. Ke2 {[%clk 0:00:12]}  Qa2+ {[%clk 0:00:09]} 54. Kf3 {[%clk 0:00:12]}  f6 {[%clk 0:00:08]} 55. Kg4 {[%clk 0:00:09]}  Qe6+ {[%clk 0:00:06]} 56. Kf3 {[%clk 0:00:09]}  Qa2 {[%clk 0:00:05]} 57. Kg4 {[%clk 0:00:09]}  Qe6+ {[%clk 0:00:05]} 58. Kf3 {[%clk 0:00:09]}  Qa2 {[%clk 0:00:05]} 1/2-1/2


[Site "https://www.chess.com"]